bitfinex/quotes_BTCUSD_20251208
["timestamp","ask_amount","ask_price","bid_price","bid_amount"]
[1765198866541,0.001,91780.0,91779.0,5.61715615]
[1765198866858,0.001,91780.0,91779.0,0.61715615]
[1765198867062,0.001,91780.0,91779.0,5.61715615]
[1765198867450,0.001,91780.0,91779.0,5.61615615]
[1765198867666,0.001,91780.0,91779.0,5.61915615]
[1765198868269,0.22874827,91804.0,91801.0,0.21786171]
[1765198868454,0.22874827,91804.0,91803.0,0.02217957]
[1765198869024,0.24144827,91804.0,91803.0,0.02217957]
[1765198869786,0.24444827,91804.0,91803.0,0.02317957]
[1765198870901,0.0157,91804.0,91803.0,0.02317957]
[1765198871412,0.003,91804.0,91803.0,0.2188578]
[1765198871596,0.003,91804.0,91803.0,0.001]
[1765198872600,0.003,91804.0,91803.0,0.2188578]
[1765198872834,0.003,91804.0,91803.0,0.24103737]
[1765198873495,0.003,91804.0,91803.0,0.24265024]
[1765198874145,0.003,91804.0,91803.0,0.22047067]
[1765198874352,0.24625543,91804.0,91803.0,0.001]
[1765198876179,0.23355543,91804.0,91803.0,0.001]
[1765198876331,0.24625543,91804.0,91803.0,0.001]
[1765198879430,0.23355543,91804.0,91803.0,0.001]
[1765198883794,0.0157,91804.0,91803.0,0.001]
[1765198884094,0.003,91804.0,91803.0,0.02317957]
[1765198884533,0.003,91804.0,91803.0,0.24103737]
[1765198885103,0.003,91804.0,91803.0,0.2188578]
[1765198885619,0.003,91804.0,91803.0,0.28132024]
[1765198885759,0.003,91804.0,91803.0,0.28767024]
[1765198885963,0.003,91804.0,91803.0,0.24900024]
[1765198886273,0.003,91804.0,91803.0,0.26453024]
[1765198889318,0.02205,91804.0,91803.0,0.2188578]
[1765198889600,0.02205,91804.0,91803.0,0.001]
[1765198889846,0.23990543,91804.0,91803.0,0.001]
[1765198890939,0.02205,91804.0,91803.0,0.001]
[1765198891103,0.23990543,91804.0,91803.0,0.001]
[1765198893321,0.00935,91804.0,91803.0,0.24817907]
[1765198893894,0.00935,91804.0,91803.0,0.03032127]
[1765198894194,0.00935,91804.0,91803.0,0.001]
[1765198895935,0.00935,91804.0,91803.0,0.2188578]
[1765198896502,0.22720543,91804.0,91803.0,0.001]
[1765198896823,0.23990543,91804.0,91803.0,0.001]
[1765198899428,0.22720543,91804.0,91803.0,0.001]
[1765198899844,0.22720543,91804.0,91803.0,0.02317957]
[1765198900242,0.00935,91804.0,91803.0,0.02317957]
[1765198900610,0.00935,91804.0,91803.0,0.24103737]
[1765198900810,0.003,91804.0,91803.0,0.28132024]
[1765198901236,0.003,91804.0,91803.0,0.3140178]
[1765198904637,0.00023276,91810.0,91809.0,0.24002313]
[1765198905715,0.00023276,91810.0,91809.0,0.28052313]
[1765198905916,0.00062269,91810.0,91809.0,0.28052313]
[1765198906110,0.00362269,91810.0,91809.0,0.28152313]
[1765198906409,0.00362269,91810.0,91809.0,0.32067151]
[1765198907983,0.00362269,91810.0,91809.0,0.29598151]
[1765198910990,0.00362269,91810.0,91809.0,0.32067151]
[1765198912275,0.00362269,91810.0,91809.0,0.28152313]
[1765198913268,0.00362269,91810.0,91809.0,0.24102313]
[1765198920562,0.00362269,91810.0,91809.0,0.26497313]
[1765198920912,0.00362269,91810.0,91809.0,0.28109313]
[1765198923187,0.00362269,91810.0,91809.0,0.33982263]
[1765198923426,0.00362269,91810.0,91809.0,0.28109313]
[1765198923589,0.00362269,91810.0,91809.0,0.21884356]
[1765198924597,0.00362269,91810.0,91809.0,0.24102313]
[1765198928438,0.00362269,91810.0,91809.0,0.29975263]
[1765198928693,0.00362269,91810.0,91809.0,0.24102313]
[1765198928893,0.00362269,91810.0,91809.0,0.29975263]
[1765198929917,0.00362269,91810.0,91809.0,0.26052643]
[1765198930154,0.00362269,91810.0,91809.0,0.605706]
[1765198930357,0.00362269,91810.0,91809.0,5.69043794]
[1765198930559,0.00362269,91810.0,91809.0,2.57676556]
[1765198930771,0.00362269,91810.0,91809.0,0.612056]
[1765198931069,0.00062269,91810.0,91809.0,0.611056]
[1765198931245,0.00162269,91810.0,91809.0,0.68942216]
[1765198931653,0.00062269,91810.0,91809.0,0.68942216]
[1765198931813,0.00062269,91810.0,91809.0,0.69142216]
[1765198932021,0.00162269,91810.0,91809.0,0.69142216]
[1765198932508,0.00162269,91810.0,91809.0,0.69242216]
[1765198933085,0.00162269,91810.0,91809.0,0.613056]
[1765198933289,0.00162269,91810.0,91809.0,0.615056]
[1765198940643,0.00162269,91810.0,91809.0,0.627386]
[1765198940904,0.00162269,91810.0,91809.0,0.24696643]
[1765198941421,0.00162269,91810.0,91809.0,0.02912287]
[1765198941642,0.00162269,91810.0,91809.0,0.30570513]
[1765198941763,0.00162269,91810.0,91809.0,0.28854513]
[1765198942372,0.00162269,91810.0,91809.0,0.3107247]
[1765198945129,0.02702269,91810.0,91809.0,0.0690887]
[1765198945344,0.24486388,91810.0,91809.0,0.04316238]
[1765198945522,0.24486388,91810.0,91809.0,0.004]
[1765198945936,0.24486388,91810.0,91809.0,0.002]
[1765198946267,0.24486388,91810.0,91809.0,0.004]
[1765198946843,0.24386388,91810.0,91809.0,0.002]
[1765198947049,0.24686388,91810.0,91809.0,0.003]
[1765198947460,0.3863298,91810.0,91809.0,0.003]
[1765198947790,0.40852579,91810.0,91809.0,0.003]
[1765198947990,0.3863298,91810.0,91809.0,0.001]
[1765198948510,0.21787679,91795.0,91793.0,0.02937048]
[1765198948720,0.03175,91794.0,91793.0,0.02937048]
[1765198949000,0.03175,91794.0,91787.0,0.22878979]
[1765198949001,0.21788153,91793.0,91792.0,0.02937048]
[1765198949240,0.23058153,91793.0,91791.0,0.02937048]
[1765198949648,0.0127,91792.0,91791.0,0.02937048]
[1765198950003,0.21788628,91791.0,91790.0,0.02937048]
[1765198950207,0.24147845,91792.0,91789.0,0.02937048]
[1765198950368,0.00635,91794.0,91792.0,0.21788347]
[1765198950756,0.22422989,91794.0,91791.0,0.01089431]
[1765198950868,0.22422989,91794.0,91791.0,0.22877997]
[1765198951291,0.002,91792.0,91791.0,0.22877997]
[1765198951540,0.01089324,91800.0,91797.0,0.22876384]
[1765198951742,0.01089265,91805.0,91803.0,0.21785777]
[1765198951941,0.22874179,91807.0,91805.0,0.02217957]
[1765198952152,0.00062269,91810.0,91807.0,0.01089241]
[1765198952495,0.00062269,91810.0,91809.0,0.269456]
[1765198952947,0.00062269,91810.0,91809.0,0.293516]
[1765198953363,0.00062269,91810.0,91809.0,0.33267838]
[1765198954228,0.00162269,91810.0,91809.0,0.33567838]
[1765198954975,0.00162269,91810.0,91809.0,0.33667838]
[1765198956778,0.00162269,91810.0,91809.0,0.28479838]
[1765198956979,0.00162269,91810.0,91809.0,0.02779244]
[1765198957226,0.00162269,91810.0,91809.0,0.02617957]
[1765198957424,0.21946388,91810.0,91809.0,0.004]
[1765198957623,0.24486388,91810.0,91809.0,0.004]
[1765198957953,0.23216388,91810.0,91809.0,0.004]
[1765198958484,0.01432269,91810.0,91809.0,0.003]
[1765198958710,0.01332269,91810.0,91809.0,0.21784356]
[1765198958907,0.01332269,91810.0,91808.0,0.24715491]
[1765198959108,0.01332269,91810.0,91808.0,0.21784585]
[1765198959552,0.00062269,91810.0,91809.0,0.21784356]
[1765198961398,0.00162269,91810.0,91809.0,0.21984356]
[1765198963355,0.00162269,91810.0,91809.0,0.002]
[1765198963583,0.00162269,91810.0,91809.0,0.21984356]
[1765198966186,0.00162269,91810.0,91809.0,0.24915262]
[1765198969211,0.00162269,91810.0,91809.0,0.21984356]
[1765198969754,0.00162269,91810.0,91809.0,0.002]
[1765198970162,0.23216388,91810.0,91809.0,0.002]
[1765198971903,0.00162269,91810.0,91809.0,0.002]
[1765198972082,0.00162269,91810.0,91809.0,0.21984356]
[1765198972896,0.21946388,91810.0,91809.0,0.002]
[1765198974786,0.24486388,91810.0,91809.0,0.0313402]
[1765198975685,0.24486388,91810.0,91809.0,0.002]
[1765198983826,0.21946388,91810.0,91809.0,0.002]
[1765198984076,0.00162269,91810.0,91809.0,0.002]
[1765198984312,0.00162269,91810.0,91809.0,0.23567356]
[1765198984437,0.00162269,91810.0,91809.0,0.32227838]
[1765198984637,0.00162269,91810.0,91809.0,0.283116]
[1765198988475,0.00162269,91810.0,91809.0,0.259466]
[1765198988676,0.00162269,91810.0,91809.0,0.22145643]
[1765198989100,0.00162269,91810.0,91809.0,0.00361287]
[1765198990963,0.00162269,91810.0,91809.0,0.22145643]
[1765198991990,0.00162269,91810.0,91809.0,0.00361287]
[1765198992190,0.21946388,91810.0,91809.0,0.00361287]
[1765198992395,0.23216388,91810.0,91809.0,0.04115359]
[1765198992599,0.24486388,91810.0,91809.0,0.002]
[1765198992807,0.23216388,91810.0,91809.0,0.002]
[1765198993352,0.00162269,91810.0,91809.0,0.02417957]
[1765198993500,0.00162269,91810.0,91809.0,0.24202313]
[1765198994695,0.00162269,91810.0,91809.0,0.28117672]
[1765198995351,0.00162269,91810.0,91809.0,0.29814715]
[1765198995527,0.00162269,91810.0,91809.0,0.32032672]
[1765198995930,0.00162269,91810.0,91809.0,0.29751672]
[1765198996167,0.00162269,91810.0,91809.0,0.32193959]
[1765198996359,0.00162269,91810.0,91809.0,0.282786]
[1765199009103,0.00162269,91810.0,91809.0,0.259976]
[1765199010265,0.00162269,91810.0,91809.0,0.282786]
[1765199011433,0.00162269,91810.0,91809.0,0.3415247]
[1765199012355,0.00162269,91810.0,91809.0,0.282786]
[1765199017122,0.00162269,91810.0,91809.0,0.259976]
[1765199017920,0.00162269,91810.0,91809.0,0.282786]
[1765199018288,0.00162269,91810.0,91809.0,0.259976]
[1765199018475,0.00162269,91810.0,91809.0,0.243636]
[1765199018875,0.00162269,91810.0,91809.0,0.259976]
[1765199019188,0.00062269,91810.0,91809.0,0.280786]
[1765199019380,0.00162269,91810.0,91809.0,5.34756893]
[1765199020597,0.00162269,91810.0,91809.0,5.32538936]
[1765199020798,0.00162269,91810.0,91809.0,5.67056893]
[1765199021038,0.00162269,91810.0,91809.0,4.9503599]
[1765199021236,0.00162269,91810.0,91809.0,3.8590599]
[1765199021420,0.00162269,91810.0,91809.0,2.5909599]
[1765199021952,0.00162269,91810.0,91809.0,1.7400599]
[1765199022160,0.00162269,91810.0,91809.0,0.7032599]
[1765199022322,0.00162269,91810.0,91809.0,0.6156474]
[1765199022705,0.00162269,91810.0,91809.0,0.63782697]
[1765199022926,0.00162269,91810.0,91809.0,0.66075697]
[1765199024063,0.00162269,91810.0,91809.0,0.31482697]
[1765199024282,0.00162269,91810.0,91809.0,0.2763074]
[1765199025565,0.01432269,91810.0,91809.0,0.24361643]
[1765199025874,0.00162269,91810.0,91809.0,0.24361643]
[1765199026798,0.00162269,91810.0,91809.0,0.24200356]
[1765199027559,0.00162269,91810.0,91809.0,0.02416]
[1765199028410,0.00162269,91810.0,91809.0,0.24200356]
[1765199030362,0.00162269,91810.0,91809.0,0.26418313]
[1765199040907,0.00162269,91810.0,91809.0,0.04633957]
[1765199041093,0.00162269,91810.0,91809.0,0.007]
[1765199041094,0.24486388,91810.0,91809.0,0.007]
[1765199041386,0.23216388,91810.0,91809.0,0.04617381]
[1765199041806,0.24486388,91810.0,91809.0,0.04417381]
[1765199041966,0.02702269,91810.0,91809.0,0.04417381]
[1765199042170,0.01432269,91810.0,91809.0,0.28419694]
[1765199042378,0.00162269,91810.0,91809.0,0.28419694]
[1765199043003,0.00062269,91810.0,91809.0,0.27919694]
[1765199043202,0.21784356,91809.0,91808.0,0.03917381]
[1765199043452,0.21784831,91807.0,91806.0,0.03917381]
[1765199043651,0.21785068,91806.0,91804.0,0.03917381]
[1765199043865,0.2178578,91803.0,91802.0,0.03917381]
[1765199044241,0.2369078,91803.0,91802.0,0.03917381]
[1765199044403,0.21786017,91802.0,91800.0,0.03917381]
[1765199044615,0.21786492,91800.0,91799.0,0.03917381]
[1765199045030,0.24326492,91800.0,91798.0,0.03917381]
[1765199045398,0.21786967,91798.0,91797.0,0.03917381]
[1765199046246,0.01089324,91800.0,91797.0,0.03917381]
[1765199046451,0.01089324,91800.0,91794.0,0.01089395]
[1765199046452,0.23057002,91798.0,91796.0,0.03917381]
[1765199046627,0.2178701,91798.0,91796.0,0.03917381]
[1765199046825,0.0127,91797.0,91796.0,0.03917381]
[1765199047614,0.0127,91797.0,91795.0,0.03917381]
[1765199047809,0.0127,91797.0,91795.0,0.25704939]
[1765199047950,0.0137,91797.0,91796.0,0.02417957]
[1765199048155,0.001,91797.0,91796.0,0.02417957]
[1765199049842,0.001,91797.0,91796.0,0.24205398]
[1765199051952,0.23157204,91797.0,91796.0,0.02417957]
[1765199052204,0.0137,91797.0,91796.0,0.24205398]
[1765199052858,0.0137,91797.0,91796.0,0.02417957]
[1765199053271,0.0137,91797.0,91796.0,0.21987441]
[1765199053397,0.0137,91797.0,91796.0,0.002]
[1765199053820,0.23157204,91797.0,91796.0,0.002]
[1765199054021,0.24427204,91797.0,91796.0,0.03133649]
[1765199054222,0.24427204,91797.0,91796.0,0.002]
[1765199057857,0.21789815,91786.0,91785.0,0.02933649]
[1765199058055,0.2179029,91784.0,91783.0,0.02933649]
[1765199058493,0.2433029,91784.0,91782.0,0.02933649]
[1765199058905,0.0254,91783.0,91782.0,0.02933649]
[1765199059250,0.0254,91783.0,91776.0,0.01716]
[1765199059251,0.21791714,91778.0,91776.0,0.01716]
[1765199059452,0.01905,91777.0,91776.0,0.01716]
[1765199059769,0.21792189,91776.0,91773.0,0.01089645]
[1765199059996,0.01905,91777.0,91774.0,0.22882192]
[1765199060206,0.00635,91777.0,91774.0,0.22882192]
[1765199060400,0.00635,91777.0,91774.0,0.2288856]
[1765199060746,0.00635,91777.0,91775.0,0.21792321]
[1765199060948,0.00735,91777.0,91776.0,0.002]
[1765199062030,0.00735,91777.0,91775.0,0.21792357]
[1765199062031,0.01905,91777.0,91775.0,0.21792357]
[1765199062401,0.02005,91777.0,91775.0,0.21792357]
[1765199062744,0.01905,91777.0,91775.0,0.21792357]
[1765199062981,0.02005,91777.0,91776.0,0.22092189]
[1765199063318,0.01905,91777.0,91776.0,0.21892189]
[1765199063542,0.02005,91777.0,91776.0,0.21792189]
[1765199063958,0.01905,91777.0,91775.0,0.21892384]
[1765199064155,0.01905,91777.0,91775.0,0.001]
[1765199064418,0.23696957,91777.0,91775.0,0.001]
[1765199064633,0.24332189,91776.0,91775.0,0.001]
[1765199065006,0.24332189,91776.0,91774.0,6.368e-05]
[1765199065007,0.21792427,91775.0,91774.0,6.368e-05]
[1765199065282,0.24332427,91775.0,91774.0,6.368e-05]
[1765199066032,0.24432427,91775.0,91774.0,6.368e-05]
[1765199066482,0.24732427,91775.0,91774.0,0.00106368]
[1765199076664,0.23462427,91775.0,91774.0,0.00106368]
[1765199077066,0.24732427,91775.0,91774.0,0.00106368]
[1765199077298,0.23462427,91775.0,91774.0,0.00106368]
[1765199077794,0.24732427,91775.0,91774.0,0.00106368]
[1765199088089,0.2575096,91775.0,91774.0,0.00106368]
[1765199088285,0.2575125,91775.0,91774.0,0.00106368]
[1765199091255,0.32003549,91775.0,91774.0,0.00106368]
[1765199093306,0.32004048,91775.0,91774.0,0.00106368]
[1765199094233,0.21795989,91760.0,91758.0,0.03104577]
[1765199094408,0.23701227,91759.0,91758.0,0.0018235]
[1765199094553,0.74592345,91759.0,91758.0,0.0018235]
[1765199094759,0.75611886,91759.0,91758.0,0.0018235]
[1765199095146,0.73793759,91759.0,91758.0,0.0018235]
[1765199095261,0.76013358,91759.0,91758.0,0.0018235]
[1765199095462,0.76113358,91759.0,91758.0,0.0038235]
[1765199095814,0.76013358,91759.0,91758.0,0.0018235]
[1765199096198,0.76413358,91759.0,91758.0,0.0028235]
[1765199096572,0.74193759,91759.0,91758.0,0.0028235]
[1765199096776,0.74293759,91759.0,91758.0,0.0028235]
[1765199097992,0.74291696,91759.0,91758.0,0.0028235]
[1765199098356,1.08510894,91759.0,91758.0,0.0028235]
[1765199098586,1.08510894,91759.0,91730.0,0.02950699]
[1765199098587,0.2180288,91731.0,91730.0,0.02950699]
[1765199098755,0.21814559,91731.0,91730.0,0.0002]
[1765199099122,0.21814559,91731.0,91730.0,0.00101563]
[1765199099759,0.24354559,91731.0,91730.0,0.00101563]
[1765199099902,0.24354559,91731.0,91730.0,0.00201563]
[1765199100116,0.23084559,91731.0,91730.0,0.00201563]
[1765199101024,0.23184559,91731.0,91730.0,0.00701563]
[1765199101400,0.00111679,91731.0,91730.0,0.00701563]
[1765199101924,0.00111679,91731.0,91730.0,0.2250468]
[1765199102308,0.00111679,91731.0,91730.0,0.24722637]
[1765199102670,0.00111679,91731.0,91730.0,0.28876924]
[1765199103061,0.00111679,91731.0,91730.0,0.26401924]
[1765199105317,0.00111679,91731.0,91730.0,0.28876924]
[1765199108568,0.00111679,91731.0,91730.0,5.62896924]
[1765199108792,0.00111679,91731.0,91730.0,5.66814305]
[1765199109003,0.00111679,91731.0,91730.0,5.66168962]
[1765199112480,0.00111679,91731.0,91730.0,5.72045131]
[1765199113327,0.00111679,91731.0,91730.0,5.66168962]
[1765199114131,0.00011679,91731.0,91730.0,5.65568962]
[1765199114339,0.00011679,91731.0,91730.0,5.65768962]
[1765199114566,0.00211679,91731.0,91730.0,5.66568962]
[1765199120554,0.00211679,91731.0,91730.0,0.66568962]
[1765199120759,0.00211679,91731.0,91730.0,5.66568962]
[1765199127123,0.00211679,91731.0,91730.0,4.31608962]
[1765199127760,0.00211679,91731.0,91730.0,5.66568962]
[1765199129849,0.00211679,91731.0,91730.0,5.81418962]
[1765199130035,0.00111635,91731.0,91730.0,5.88240144]
[1765199130440,0.00111635,91731.0,91730.0,5.88040144]
[1765199130723,6.684e-05,91731.0,91730.0,5.88040144]
[1765199130927,6.684e-05,91731.0,91730.0,5.88540144]
[1765199131132,0.01089692,91769.0,91766.0,0.02217957]
[1765199131354,0.23517285,91775.0,91770.0,0.22883265]
[1765199131555,0.01089633,91774.0,91770.0,0.0108968]
[1765199131722,0.22882361,91774.0,91771.0,0.22882855]
[1765199132024,0.0127,91771.0,91768.0,0.01089704]
[1765199132430,0.0127,91771.0,91769.0,0.2179381]
[1765199133141,0.0127,91771.0,91770.0,0.001]
[1765199133495,0.0127,91771.0,91769.0,0.2179381]
[1765199133703,0.0157,91771.0,91769.0,0.2189381]
[1765199134105,0.0127,91771.0,91769.0,0.2179381]
[1765199134303,0.0167,91771.0,91770.0,0.001]
[1765199134608,0.0127,91771.0,91768.0,0.01089704]
[1765199134807,0.0127,91770.0,91768.0,0.2179401]
[1765199135238,0.22882825,91772.0,91769.0,0.2179382]
[1765199135959,0.003,91771.0,91769.0,0.2189382]
[1765199136194,0.22882825,91772.0,91769.0,0.22883512]
[1765199136404,0.01089645,91773.0,91770.0,0.22883102]
[1765199136571,0.003,91772.0,91770.0,0.22883102]
[1765199136775,0.2288261,91773.0,91770.0,0.22883102]
[1765199136978,0.01089656,91772.0,91768.0,0.01089704]
[1765199137199,0.003,91771.0,91769.0,0.21893836]
[1765199137400,0.003,91771.0,91769.0,0.001]
[1765199137600,0.22882842,91772.0,91769.0,0.001]
[1765199137601,0.01089656,91772.0,91769.0,0.21793813]
[1765199137799,0.00646701,91775.0,91773.0,0.21792865]
[1765199137977,0.00646701,91775.0,91774.0,0.21792664]
[1765199138820,0.21793376,91771.0,91770.0,0.001]
[1765199138971,0.22883044,91771.0,91768.0,0.01089704]
[1765199139178,0.01089668,91771.0,91769.0,0.21793848]
[1765199139435,0.01389668,91771.0,91769.0,0.21893848]
[1765199139635,0.2288287,91772.0,91769.0,0.21793848]
[1765199139831,0.003,91771.0,91770.0,0.001]
[1765199140731,0.2288287,91772.0,91769.0,0.21793845]
[1765199141246,0.003,91771.0,91770.0,0.21793614]
[1765199142127,0.01089633,91774.0,91771.0,0.22882849]
[1765199142312,0.00646701,91775.0,91772.0,0.01089656]
[1765199142511,0.00646701,91775.0,91774.0,0.21792664]
[1765199143478,0.00011701,91775.0,91774.0,0.28024621]
[1765199143647,0.00011701,91775.0,91774.0,0.25967951]
[1765199143857,0.00011701,91775.0,91774.0,0.28185908]
[1765199144060,0.00411701,91775.0,91774.0,0.28285908]
[1765199145655,0.00011701,91775.0,91774.0,0.28185908]
[1765199145844,0.00211701,91775.0,91774.0,0.28285908]
[1765199146021,0.00211701,91775.0,91774.0,0.28385908]
[1765199148637,0.00011701,91775.0,91774.0,0.28185908]
[1765199148789,0.00011701,91775.0,91774.0,0.28485908]
[1765199149031,0.00111701,91775.0,91774.0,0.28785908]
[1765199149560,0.00111701,91775.0,91774.0,5.61085908]
[1765199150146,0.00111701,91775.0,91774.0,5.68910869]
[1765199150334,0.00173836,91802.0,91801.0,0.24004212]
[1765199150528,0.00173836,91802.0,91801.0,0.27354212]
[1765199150783,0.00173836,91802.0,91801.0,0.27520255]
[1765199151014,0.00173836,91802.0,91801.0,0.29738212]
[1765199151890,0.00573836,91802.0,91801.0,0.29838212]
[1765199152090,0.00573836,91802.0,91801.0,0.29999499]
[1765199154346,0.00573836,91802.0,91801.0,0.27781542]
[1765199154555,0.00573836,91802.0,91801.0,0.29999499]
[1765199155589,0.00573836,91802.0,91801.0,0.30199499]
[1765199155997,0.00173836,91802.0,91801.0,0.30099499]
[1765199156490,0.00173836,91802.0,91801.0,0.62399499]
[1765199156696,0.00173836,91802.0,91801.0,5.66303847]
[1765199156831,0.00173836,91802.0,91801.0,5.62399499]
[1765199159092,0.00173836,91802.0,91801.0,5.62199499]
[1765199159292,0.00173836,91802.0,91801.0,5.62499499]
[1765199159573,0.00173836,91802.0,91801.0,5.62699499]
[1765199159794,0.00173836,91802.0,91801.0,5.62399499]
[1765199160244,0.00173836,91802.0,91801.0,4.16831542]
[1765199160434,0.00173836,91802.0,91801.0,4.19049499]
[1765199160888,0.00173836,91802.0,91801.0,5.62699499]
[1765199162231,1e-08,91802.0,91801.0,5.62699499]
[1765199162437,0.0001,91824.0,91823.0,5.56298992]
[1765199162655,0.00049011,91824.0,91823.0,5.60912279]
[1765199162896,0.00049011,91824.0,91823.0,5.63172279]
[1765199163336,0.00049011,91824.0,91823.0,5.64260903]
[1765199163544,0.00049011,91824.0,91823.0,5.68147795]
[1765199163972,0.00049011,91824.0,91823.0,5.64260903]
[1765199165233,0.00049011,91824.0,91823.0,3.86940903]
[1765199165487,0.00049011,91824.0,91823.0,2.02000903]
[1765199165689,0.00049011,91824.0,91823.0,2.03720903]
[1765199165896,0.00049011,91824.0,91823.0,2.04020903]
[1765199166113,0.00049011,91824.0,91823.0,5.64560903]
[1765199166381,0.00049011,91824.0,91823.0,5.62142946]
[1765199166619,0.00049011,91824.0,91823.0,5.64360903]
[1765199168028,0.0011301,91824.0,91823.0,5.64260903]
[1765199168457,0.0011301,91824.0,91823.0,5.64660903]
[1765199168805,0.0011301,91824.0,91823.0,5.68347795]
[1765199169382,0.0011301,91824.0,91823.0,5.64460903]
[1765199169582,0.0011301,91824.0,91823.0,5.64760903]
[1765199171200,0.0011301,91824.0,91823.0,5.68647795]
[1765199171359,0.0004,91850.0,91849.0,5.23992826]
[1765199171593,0.00051698,91850.0,91849.0,5.27376113]
[1765199171706,0.00051698,91850.0,91849.0,5.61936113]
[1765199172153,0.00051698,91850.0,91849.0,5.63659548]
[1765199172589,0.00351698,91850.0,91849.0,5.63659548]
[1765199173218,0.00351698,91850.0,91849.0,0.63759548]
[1765199173415,0.00351698,91850.0,91849.0,5.63759548]
[1765199173921,0.00351698,91850.0,91849.0,5.69737841]
[1765199174987,0.00351698,91850.0,91849.0,5.75562786]
[1765199175436,0.00351698,91850.0,91849.0,2.67289884]
[1765199175437,0.00051698,91850.0,91849.0,2.67289884]
[1765199175627,0.00051698,91850.0,91849.0,2.59807841]
[1765199175838,0.00051698,91850.0,91849.0,2.47337841]
[1765199176276,0.00051698,91850.0,91849.0,5.70137841]
[1765199176916,0.00127303,91850.0,91849.0,5.70137841]
[1765199177121,0.00127303,91850.0,91849.0,5.69737841]
[1765199178671,0.00127303,91850.0,91849.0,5.73621098]
[1765199179085,0.00127303,91850.0,91849.0,5.69737841]
[1765199179492,0.00127303,91850.0,91849.0,5.73621098]
[1765199179700,0.00527303,91850.0,91849.0,5.73621098]
[1765199179939,0.00127303,91850.0,91849.0,5.73621098]
[1765199180351,0.00127303,91850.0,91849.0,5.73721098]
[1765199180642,3.03e-06,91850.0,91849.0,5.73721098]
[1765199180852,0.0004,91880.0,91869.0,5.56288086]
[1765199181064,0.0004,91880.0,91879.0,5.56285716]
[1765199181272,0.0004,91910.0,91889.0,0.56283347]
[1765199181487,0.0004,91910.0,91889.0,5.60891634]
[1765199181696,0.0004,91910.0,91889.0,5.63355634]
[1765199183629,1e-08,91890.0,91889.0,5.77679328]
[1765199183837,0.0004,91910.0,91909.0,0.56278611]
[1765199184010,0.00051685,91910.0,91909.0,5.59740898]
[1765199184223,0.00051685,91910.0,91909.0,5.62204898]
[1765199184432,0.00051685,91910.0,91909.0,2.48544898]
[1765199184715,0.00051685,91910.0,91909.0,1.31510244]
[1765199185178,0.00051685,91910.0,91909.0,5.62640244]
[1765199185404,0.23819102,91910.0,91909.0,0.00435346]
[1765199185632,0.01088091,91904.0,91899.0,0.01088151]
[1765199185844,0.01321,91900.0,91894.0,0.21764035]
[1765199186047,0.01088151,91899.0,91896.0,0.01088186]
[1765199186266,0.21761622,91905.0,91900.0,0.01088139]
[1765199186464,0.00737685,91910.0,91900.0,0.01088139]
[1765199186667,0.21761128,91907.0,91905.0,0.02217957]
[1765199186845,0.21761128,91907.0,91893.0,0.28830845]
[1765199186846,0.21763568,91897.0,91893.0,0.28830845]
[1765199187011,0.01088174,91897.0,91896.0,0.02217957]
[1765199187211,0.01088162,91898.0,91897.0,0.02217957]
[1765199187715,0.01227646,91898.0,91897.0,0.02217957]
[1765199188305,0.00139484,91898.0,91897.0,0.02217957]
[1765199188508,0.00139484,91898.0,91897.0,0.28026453]
[1765199188879,0.00139484,91898.0,91897.0,5.2818774]
[1765199189433,0.00939484,91898.0,91897.0,5.6048774]
[1765199190269,0.00139484,91898.0,91897.0,0.6048774]
[1765199190444,0.00339484,91898.0,91897.0,5.6048774]
[1765199191049,0.00339484,91898.0,91897.0,1.5981774]
[1765199191262,0.00339484,91898.0,91897.0,0.54063496]
[1765199191678,0.00051685,91910.0,91909.0,0.21760654]
[1765199191879,0.00051685,91910.0,91909.0,0.21921941]
[1765199192134,0.01669685,91910.0,91909.0,0.23480654]
[1765199192395,0.01704543,91910.0,91905.0,0.21761433]
[1765199192587,0.01088151,91899.0,91898.0,0.01724]
[1765199192785,0.22850491,91902.0,91898.0,0.01724]
[1765199192907,0.22850491,91902.0,91899.0,0.01088151]
[1765199193138,0.01088115,91902.0,91899.0,0.22851142]
[1765199193339,0.21761872,91904.0,91900.0,0.22850804]
[1765199193540,0.21761872,91904.0,91901.0,0.22850654]
[1765199193851,0.01088032,91909.0,91905.0,0.21761562]
[1765199194078,0.22848745,91909.0,91905.0,0.21761562]
[1765199194480,0.21812307,91910.0,91905.0,0.21761562]
[1765199194481,0.00051685,91910.0,91908.0,0.21760891]
[1765199194680,0.00051685,91910.0,91909.0,0.23978611]
[1765199194879,0.00051685,91910.0,91909.0,0.28023611]
[1765199195494,0.00051685,91910.0,91909.0,0.29908898]
[1765199195927,0.00051685,91910.0,91909.0,0.35887191]
[1765199197141,0.00051685,91910.0,91907.0,0.22848955]
[1765199197142,0.02757705,91910.0,91907.0,0.01088056]
[1765199197317,0.01618,91909.0,91907.0,0.01724]
[1765199197517,0.01618,91908.0,91906.0,0.23485356]
[1765199197870,0.01618,91907.0,91906.0,0.21761364]
[1765199198079,0.01618,91907.0,91905.0,0.0108808]
[1765199198354,0.01618,91907.0,91905.0,0.0281208]
[1765199198557,0.0002324,91906.0,91905.0,0.24573653]
[1765199199068,0.0002324,91906.0,91905.0,0.2679161]
[1765199199290,0.0002324,91906.0,91905.0,0.3083661]
[1765199199707,0.0002324,91906.0,91905.0,0.30997897]
[1765199200057,0.0002324,91906.0,91905.0,0.63297897]
[1765199200258,0.0002324,91906.0,91905.0,5.63297897]
[1765199202059,0.0042324,91906.0,91905.0,5.63297897]
[1765199202466,0.0042324,91906.0,91905.0,1.29977897]
[1765199202665,0.0042324,91906.0,91905.0,1.20847897]
[1765199203180,0.0042324,91906.0,91905.0,1.29977897]
[1765199204267,0.0042324,91906.0,91905.0,5.63297897]
[1765199206393,0.0042324,91906.0,91905.0,5.69110898]
[1765199207327,0.0042324,91906.0,91905.0,5.63297897]
[1765199207535,0.0002324,91906.0,91905.0,5.63297897]
[1765199208116,0.0002324,91906.0,91905.0,5.63497897]
[1765199209654,0.0002324,91906.0,91905.0,5.5955594]
[1765199209858,0.0002324,91906.0,91905.0,5.69546566]
[1765199210088,0.0002324,91906.0,91905.0,5.63293897]
[1765199210256,0.0002324,91906.0,91905.0,5.71066566]
[1765199210434,0.0002324,91906.0,91905.0,5.71366566]
[1765199211238,0.0002324,91906.0,91905.0,5.63593897]
[1765199213232,0.0002324,91906.0,91905.0,5.63293897]
[1765199213438,0.0002324,91906.0,91905.0,5.63393897]
[1765199213687,0.0002324,91906.0,91905.0,5.63493897]
[1765199214049,0.0002324,91906.0,91905.0,5.5551094]
[1765199214246,0.23401604,91906.0,91905.0,0.002]
[1765199214457,0.31314903,91906.0,91905.0,0.002]